[Event "Titled Tuesday Blitz May 16 Early 2023"]
[White "Aakanksha Hagawane"]
[Black "Rozman, Levy"]
[WhiteFideId "25014510"]
[BlackFideId "2039877"]
[WhiteElo "2081"]
[BlackElo "2376"]
[Result "0-1"]
[Round "01"]
[TimeControl "180+2"]
[Date "2023.05.16"]
[WhiteClock "0:00:00"]
[BlackClock "0:01:03"]

1. e4 {[%clk 0:02:59]}  c6 {[%clk 0:02:58]} 2. Nc3 {[%clk 0:02:56]}  d5 {[%clk 0:02:58]} 3. Nf3 {[%clk 0:02:56]}  a6 {[%clk 0:02:58]} 4. a4 {[%clk 0:02:51]}  Bg4 {[%clk 0:02:52]} 5. h3 {[%clk 0:02:48]}  Bxf3 {[%clk 0:02:52]} 6. Qxf3 {[%clk 0:02:48]}  e6 {[%clk 0:02:53]} 7. a5 {[%clk 0:02:47]}  Nf6 {[%clk 0:02:49]} 8. exd5 {[%clk 0:02:29]}  cxd5 {[%clk 0:02:48]} 9. d4 {[%clk 0:02:09]}  Nc6 {[%clk 0:02:48]} 10. Qd1 {[%clk 0:02:07]}  Nxa5 {[%clk 0:02:46]} 11. Be2 {[%clk 0:02:04]}  Nc6 {[%clk 0:02:46]} 12. O-O {[%clk 0:02:04]}  Bd6 {[%clk 0:02:42]} 13. Bg5 {[%clk 0:02:01]}  h6 {[%clk 0:02:43]} 14. Be3 {[%clk 0:01:56]}  O-O {[%clk 0:02:39]} 15. Bd3 {[%clk 0:01:54]}  Nb4 {[%clk 0:02:35]} 16. Be2 {[%clk 0:01:54]}  Rc8 {[%clk 0:02:34]} 17. f4 {[%clk 0:01:34]}  Ne4 {[%clk 0:02:27]} 18. Nxe4 {[%clk 0:01:29]}  dxe4 {[%clk 0:02:26]} 19. c4 {[%clk 0:01:30]}  b5 {[%clk 0:02:10]} 20. b3 {[%clk 0:00:47]}  Qd7 {[%clk 0:02:07]} 21. Qd2 {[%clk 0:00:43]}  Be7 {[%clk 0:02:00]} 22. f5 {[%clk 0:00:19]}  exf5 {[%clk 0:01:55]} 23. d5 {[%clk 0:00:19]}  Rfd8 {[%clk 0:01:44]} 24. cxb5 {[%clk 0:00:12]}  axb5 {[%clk 0:01:40]} 25. Ra7 {[%clk 0:00:12]}  Qxd5 {[%clk 0:01:35]} 26. Rxe7 {[%clk 0:00:03]}  Qxd2 {[%clk 0:01:34]} 27. Bxd2 {[%clk 0:00:04]}  Rxd2 {[%clk 0:01:34]} 28. Bxb5 {[%clk 0:00:05]}  Nd5 {[%clk 0:01:07]} 29. Rd7 {[%clk 0:00:05]}  Rcc2 {[%clk 0:01:04]} 30. Rxf5 {[%clk 0:00:03]}  Rxg2+ {[%clk 0:01:03]} 31. Kh1 {[%clk 0:00:03]}  Rh2+ {[%clk 0:01:04]} 32. Kg1 {[%clk 0:00:03]}  Rcg2+ {[%clk 0:01:05]} 33. Kf1 {[%clk 0:00:03]}  Ne3+ {[%clk 0:01:05]} 34. Ke1 {[%clk 0:00:00]}  Nxf5 {[%clk 0:01:03]} 0-1


[Site "https://www.chess.com"]

[Event "Titled Tuesday Blitz May 16 Early 2023"]
[White "Bondau"]
[Black "electrosaw"]
[WhiteElo "2782"]
[BlackElo "2454"]
[Result "1-0"]
[Round "01"]
[TimeControl "180+2"]
[Date "2023.05.16"]
[WhiteClock "0:00:06"]
[BlackClock "0:00:06"]

1. e4 {[%clk 0:03:00]}  c5 {[%clk 0:03:00]} 2. Nf3 {[%clk 0:02:59]}  g6 {[%clk 0:03:00]} 3. c3 {[%clk 0:02:57]}  Bg7 {[%clk 0:02:57]} 4. d4 {[%clk 0:02:57]}  cxd4 {[%clk 0:02:58]} 5. cxd4 {[%clk 0:02:57]}  d5 {[%clk 0:02:59]} 6. e5 {[%clk 0:02:57]}  Nc6 {[%clk 0:02:59]} 7. Nc3 {[%clk 0:02:57]}  Bg4 {[%clk 0:02:57]} 8. Be2 {[%clk 0:02:56]}  Nh6 {[%clk 0:02:56]} 9. h3 {[%clk 0:02:56]}  Bxf3 {[%clk 0:02:56]} 10. Bxf3 {[%clk 0:02:57]}  e6 {[%clk 0:02:52]} 11. Be3 {[%clk 0:02:45]}  Nf5 {[%clk 0:02:50]} 12. Qd2 {[%clk 0:02:42]}  O-O {[%clk 0:02:49]} 13. O-O {[%clk 0:02:41]}  f6 {[%clk 0:02:49]} 14. exf6 {[%clk 0:02:33]}  Qxf6 {[%clk 0:02:50]} 15. Bg4 {[%clk 0:01:44]}  Ncxd4 {[%clk 0:02:48]} 16. Bxd4 {[%clk 0:01:43]}  Nxd4 {[%clk 0:02:49]} 17. Rfe1 {[%clk 0:01:24]}  Rae8 {[%clk 0:02:48]} 18. Nd1 {[%clk 0:00:54]}  h5 {[%clk 0:02:45]} 19. Be2 {[%clk 0:00:54]}  Nxe2+ {[%clk 0:02:11]} 20. Rxe2 {[%clk 0:00:51]}  Rc8 {[%clk 0:02:06]} 21. Nc3 {[%clk 0:00:48]}  Rfe8 {[%clk 0:01:59]} 22. Rae1 {[%clk 0:00:46]}  a6 {[%clk 0:01:58]} 23. Nxd5 {[%clk 0:00:38]}  Qf7 {[%clk 0:01:59]} 24. Nc3 {[%clk 0:00:35]}  Rcd8 {[%clk 0:01:59]} 25. Qg5 {[%clk 0:00:31]}  Bxc3 {[%clk 0:01:56]} 26. bxc3 {[%clk 0:00:31]}  Kg7 {[%clk 0:01:49]} 27. Qg3 {[%clk 0:00:25]}  Rd5 {[%clk 0:01:47]} 28. c4 {[%clk 0:00:24]}  Rf5 {[%clk 0:01:46]} 29. Re5 {[%clk 0:00:23]}  Rd8 {[%clk 0:01:29]} 30. Rxe6 {[%clk 0:00:20]}  Rd7 {[%clk 0:01:25]} 31. R6e5 {[%clk 0:00:19]}  Rxe5 {[%clk 0:01:21]} 32. Qxe5+ {[%clk 0:00:20]}  Kh7 {[%clk 0:01:20]} 33. c5 {[%clk 0:00:19]}  Rd2 {[%clk 0:01:14]} 34. Qe3 {[%clk 0:00:15]}  Rxa2 {[%clk 0:01:10]} 35. Qd4 {[%clk 0:00:13]}  Rc2 {[%clk 0:00:54]} 36. Qh4 {[%clk 0:00:13]}  Rc4 {[%clk 0:00:39]} 37. Qd8 {[%clk 0:00:12]}  Kh6 {[%clk 0:00:25]} 38. g3 {[%clk 0:00:08]}  Rc2 {[%clk 0:00:20]} 39. Qd4 {[%clk 0:00:07]}  Rc4 {[%clk 0:00:13]} 40. Qh8+ {[%clk 0:00:07]}  Qh7 {[%clk 0:00:13]} 41. Qf8+ {[%clk 0:00:06]}  Qg7 {[%clk 0:00:14]} 42. Qd6 {[%clk 0:00:06]}  Qc3 {[%clk 0:00:07]} 43. Qf8+ {[%clk 0:00:05]}  Qg7 {[%clk 0:00:06]} 44. Qd6 {[%clk 0:00:05]}  Qc3 {[%clk 0:00:07]} 45. Re8 {[%clk 0:00:05]}  Qc1+ {[%clk 0:00:07]} 46. Kg2 {[%clk 0:00:05]}  h4 {[%clk 0:00:06]} 47. Qf8+ {[%clk 0:00:05]}  Kg5 {[%clk 0:00:06]} 48. Re5# {[%clk 0:00:06]} 1-0


[Site "https://www.chess.com"]

[Event "Titled Tuesday Blitz May 16 Early 2023"]
[White "Kielinkei"]
[Black "Ilamparthi A R"]
[BlackFideId "45015775"]
[WhiteElo "2449"]
[BlackElo "2348"]
[Result "0-1"]
[Round "01"]
[TimeControl "180+2"]
[Date "2023.05.16"]
[WhiteClock "0:00:06"]
[BlackClock "0:00:08"]

1. e4 {[%clk 0:03:00]}  c5 {[%clk 0:02:59]} 2. Nf3 {[%clk 0:02:58]}  e6 {[%clk 0:02:58]} 3. d4 {[%clk 0:02:55]}  cxd4 {[%clk 0:02:59]} 4. Nxd4 {[%clk 0:02:56]}  Nf6 {[%clk 0:02:59]} 5. Nc3 {[%clk 0:02:53]}  Nc6 {[%clk 0:02:59]} 6. Nxc6 {[%clk 0:02:46]}  bxc6 {[%clk 0:02:59]} 7. Bd3 {[%clk 0:02:46]}  d5 {[%clk 0:02:59]} 8. O-O {[%clk 0:02:46]}  Be7 {[%clk 0:02:57]} 9. b3 {[%clk 0:02:39]}  O-O {[%clk 0:02:57]} 10. Bb2 {[%clk 0:02:39]}  a5 {[%clk 0:02:56]} 11. Qe2 {[%clk 0:02:34]}  Rb8 {[%clk 0:02:52]} 12. Rad1 {[%clk 0:02:30]}  Nd7 {[%clk 0:02:46]} 13. exd5 {[%clk 0:02:21]}  cxd5 {[%clk 0:02:42]} 14. Rfe1 {[%clk 0:02:18]}  Bf6 {[%clk 0:02:41]} 15. Na4 {[%clk 0:02:07]}  Bxb2 {[%clk 0:02:23]} 16. Nxb2 {[%clk 0:02:08]}  Nc5 {[%clk 0:02:21]} 17. Qe3 {[%clk 0:01:49]}  Qc7 {[%clk 0:02:13]} 18. Bf1 {[%clk 0:01:45]}  Bb7 {[%clk 0:02:07]} 19. c4 {[%clk 0:01:43]}  Rfd8 {[%clk 0:02:00]} 20. cxd5 {[%clk 0:01:39]}  exd5 {[%clk 0:01:47]} 21. Rc1 {[%clk 0:01:29]}  d4 {[%clk 0:01:35]} 22. Qe7 {[%clk 0:01:23]}  Qxe7 {[%clk 0:01:31]} 23. Rxe7 {[%clk 0:01:24]}  Ne6 {[%clk 0:01:26]} 24. Bb5 {[%clk 0:00:53]}  Kf8 {[%clk 0:00:36]} 25. Rd7 {[%clk 0:00:51]}  Rxd7 {[%clk 0:00:37]} 26. Bxd7 {[%clk 0:00:51]}  Nf4 {[%clk 0:00:37]} 27. Rd1 {[%clk 0:00:40]}  Bxg2 {[%clk 0:00:23]} 28. Nd3 {[%clk 0:00:36]}  Bf3 {[%clk 0:00:23]} 29. Rd2 {[%clk 0:00:36]}  Rd8 {[%clk 0:00:18]} 30. Bb5 {[%clk 0:00:27]}  Ne2+ {[%clk 0:00:15]} 31. Kf1 {[%clk 0:00:25]}  Nc3 {[%clk 0:00:15]} 32. Bc4 {[%clk 0:00:26]}  Ne4 {[%clk 0:00:15]} 33. Rc2 {[%clk 0:00:22]}  f6 {[%clk 0:00:13]} 34. Nf4 {[%clk 0:00:19]}  Rc8 {[%clk 0:00:10]} 35. Ne6+ {[%clk 0:00:18]}  Ke7 {[%clk 0:00:10]} 36. Nxd4 {[%clk 0:00:18]}  Bh5 {[%clk 0:00:09]} 37. Nf5+ {[%clk 0:00:17]}  Kf8 {[%clk 0:00:09]} 38. Nd4 {[%clk 0:00:13]}  a4 {[%clk 0:00:10]} 39. Ne6+ {[%clk 0:00:09]}  Ke7 {[%clk 0:00:10]} 40. Nf4 {[%clk 0:00:08]}  Bf3 {[%clk 0:00:08]} 41. Nd5+ {[%clk 0:00:08]}  Kf8 {[%clk 0:00:08]} 42. Nb6 {[%clk 0:00:08]}  Rd8 {[%clk 0:00:09]} 43. Nd5 {[%clk 0:00:03]}  axb3 {[%clk 0:00:08]} 44. axb3 {[%clk 0:00:03]}  Nd6 {[%clk 0:00:07]} 45. Ke1 {[%clk 0:00:03]}  Nxc4 {[%clk 0:00:07]} 46. bxc4 {[%clk 0:00:04]}  Bxd5 {[%clk 0:00:07]} 47. cxd5 {[%clk 0:00:04]}  Rxd5 {[%clk 0:00:07]} 48. Kf1 {[%clk 0:00:04]}  Kf7 {[%clk 0:00:08]} 49. Kg2 {[%clk 0:00:05]}  Kg6 {[%clk 0:00:09]} 50. Rc4 {[%clk 0:00:05]}  h5 {[%clk 0:00:09]} 51. Ra4 {[%clk 0:00:05]}  Rg5+ {[%clk 0:00:10]} 52. Kf3 {[%clk 0:00:05]}  Rf5+ {[%clk 0:00:10]} 53. Kg2 {[%clk 0:00:06]}  Kg5 {[%clk 0:00:10]} 54. Rb4 {[%clk 0:00:06]}  Rf4 {[%clk 0:00:10]} 55. Rb5+ {[%clk 0:00:06]}  Rf5 {[%clk 0:00:10]} 56. Rb4 {[%clk 0:00:06]}  g6 {[%clk 0:00:10]} 57. Ra4 {[%clk 0:00:06]}  Rd5 {[%clk 0:00:10]} 58. Rb4 {[%clk 0:00:07]}  f5 {[%clk 0:00:09]} 59. Ra4 {[%clk 0:00:07]}  Rd2 {[%clk 0:00:09]} 60. Rb4 {[%clk 0:00:07]}  f4 {[%clk 0:00:09]} 61. h3 {[%clk 0:00:07]}  Ra2 {[%clk 0:00:08]} 62. Rc4 {[%clk 0:00:07]}  Ra5 {[%clk 0:00:07]} 63. Rb4 {[%clk 0:00:07]}  Ra3 {[%clk 0:00:07]} 64. Rc4 {[%clk 0:00:07]}  Kf5 {[%clk 0:00:07]} 65. Rc5+ {[%clk 0:00:07]}  Ke4 {[%clk 0:00:08]} 66. Rc6 {[%clk 0:00:06]}  g5 {[%clk 0:00:07]} 67. Re6+ {[%clk 0:00:06]}  Kf5 {[%clk 0:00:07]} 68. Rh6 {[%clk 0:00:06]}  g4 {[%clk 0:00:04]} 69. Rxh5+ {[%clk 0:00:05]}  Ke4 {[%clk 0:00:05]} 70. hxg4 {[%clk 0:00:05]}  Ra1 {[%clk 0:00:05]} 71. Rh1 {[%clk 0:00:03]}  f3+ {[%clk 0:00:05]} 72. Kh2 {[%clk 0:00:04]}  Rxh1+ {[%clk 0:00:03]} 73. Kxh1 {[%clk 0:00:04]}  Kf4 {[%clk 0:00:04]} 74. g5 {[%clk 0:00:02]}  Kxg5 {[%clk 0:00:04]} 75. Kg1 {[%clk 0:00:02]}  Kf4 {[%clk 0:00:03]} 76. Kh1 {[%clk 0:00:02]}  Ke4 {[%clk 0:00:04]} 77. Kh2 {[%clk 0:00:01]}  Kd3 {[%clk 0:00:03]} 78. Kh3 {[%clk 0:00:02]}  Kd2 {[%clk 0:00:03]} 79. Kh4 {[%clk 0:00:02]}  Ke1 {[%clk 0:00:03]} 80. Kg3 {[%clk 0:00:02]}  Ke2 {[%clk 0:00:03]} 81. Kh2 {[%clk 0:00:02]}  Kxf2 {[%clk 0:00:04]} 82. Kh1 {[%clk 0:00:03]}  Ke2 {[%clk 0:00:05]} 83. Kh2 {[%clk 0:00:04]}  f2 {[%clk 0:00:05]} 84. Kh1 {[%clk 0:00:04]}  f1=Q+ {[%clk 0:00:06]} 85. Kh2 {[%clk 0:00:05]}  Qf3 {[%clk 0:00:06]} 86. Kg1 {[%clk 0:00:06]}  Qg4+ {[%clk 0:00:06]} 87. Kh2 {[%clk 0:00:06]}  Kf2 {[%clk 0:00:07]} 88. Kh1 {[%clk 0:00:06]}  Qh5# {[%clk 0:00:08]} 0-1


[Site "https://www.chess.com"]

[Event "Titled Tuesday Blitz May 16 Early 2023"]
[White "Titichoca Daza, Daniel"]
[Black "Panesar Vedant"]
[WhiteFideId "3309550"]
[BlackFideId "35033018"]
[WhiteElo "2101"]
[BlackElo "2347"]
[Result "1/2-1/2"]
[Round "01"]
[TimeControl "180+2"]
[Date "2023.05.16"]
[WhiteClock "0:00:02"]
[BlackClock "0:00:16"]

1. e4 {[%clk 0:02:56]}  e5 {[%clk 0:02:59]} 2. Nf3 {[%clk 0:02:55]}  Nc6 {[%clk 0:02:59]} 3. Bc4 {[%clk 0:02:54]}  Nf6 {[%clk 0:02:58]} 4. d3 {[%clk 0:02:54]}  h6 {[%clk 0:02:58]} 5. c3 {[%clk 0:02:53]}  Bc5 {[%clk 0:02:56]} 6. b4 {[%clk 0:02:52]}  Bb6 {[%clk 0:02:54]} 7. a4 {[%clk 0:02:53]}  a5 {[%clk 0:02:52]} 8. b5 {[%clk 0:02:51]}  Ne7 {[%clk 0:02:53]} 9. Nxe5 {[%clk 0:02:50]}  d5 {[%clk 0:02:52]} 10. exd5 {[%clk 0:02:50]}  Nexd5 {[%clk 0:02:53]} 11. O-O {[%clk 0:02:49]}  O-O {[%clk 0:02:53]} 12. Ba3 {[%clk 0:02:33]}  Re8 {[%clk 0:02:50]} 13. Re1 {[%clk 0:02:32]}  Be6 {[%clk 0:02:44]} 14. Qf3 {[%clk 0:02:15]}  c6 {[%clk 0:02:08]} 15. d4 {[%clk 0:02:03]}  Qc7 {[%clk 0:02:05]} 16. Nd2 {[%clk 0:01:56]}  Rad8 {[%clk 0:02:02]} 17. bxc6 {[%clk 0:01:42]}  bxc6 {[%clk 0:01:57]} 18. Rac1 {[%clk 0:01:41]}  Ba7 {[%clk 0:01:39]} 19. Ba2 {[%clk 0:01:27]}  Bb8 {[%clk 0:01:23]} 20. h3 {[%clk 0:01:25]}  Nd7 {[%clk 0:01:16]} 21. Ndc4 {[%clk 0:01:06]}  Nxe5 {[%clk 0:01:08]} 22. dxe5 {[%clk 0:01:05]}  Qa7 {[%clk 0:00:59]} 23. Nd6 {[%clk 0:01:04]}  Bxd6 {[%clk 0:00:57]} 24. Bxd6 {[%clk 0:00:54]}  Rd7 {[%clk 0:00:51]} 25. Bb1 {[%clk 0:00:51]}  Rb7 {[%clk 0:00:40]} 26. Bd3 {[%clk 0:00:48]}  Rb3 {[%clk 0:00:34]} 27. Qe4 {[%clk 0:00:47]}  g6 {[%clk 0:00:33]} 28. Qh4 {[%clk 0:00:48]}  Kh7 {[%clk 0:00:28]} 29. Be4 {[%clk 0:00:17]}  Nxc3 {[%clk 0:00:24]} 30. Bxc6 {[%clk 0:00:16]}  Rc8 {[%clk 0:00:24]} 31. Bf3 {[%clk 0:00:16]}  Rb2 {[%clk 0:00:23]} 32. Qf6 {[%clk 0:00:16]}  Qxf2+ {[%clk 0:00:22]} 33. Kh1 {[%clk 0:00:15]}  Nd5 {[%clk 0:00:12]} 34. Bxd5 {[%clk 0:00:13]}  Rxc1 {[%clk 0:00:12]} 35. Qxf2 {[%clk 0:00:12]}  Rxf2 {[%clk 0:00:12]} 36. Rxc1 {[%clk 0:00:12]}  Bxd5 {[%clk 0:00:13]} 37. Rg1 {[%clk 0:00:12]}  g5 {[%clk 0:00:12]} 38. Kh2 {[%clk 0:00:12]}  Kg6 {[%clk 0:00:12]} 39. Kg3 {[%clk 0:00:12]}  Rf4 {[%clk 0:00:12]} 40. Rb1 {[%clk 0:00:10]}  Rxa4 {[%clk 0:00:12]} 41. Rb6 {[%clk 0:00:11]}  Kf5 {[%clk 0:00:12]} 42. Bc7 {[%clk 0:00:09]}  h5 {[%clk 0:00:11]} 43. Rf6+ {[%clk 0:00:09]}  Ke4 {[%clk 0:00:11]} 44. h4 {[%clk 0:00:09]}  gxh4+ {[%clk 0:00:11]} 45. Kxh4 {[%clk 0:00:10]}  Ke3+ {[%clk 0:00:10]} 46. Kxh5 {[%clk 0:00:09]}  Ra2 {[%clk 0:00:10]} 47. g4 {[%clk 0:00:09]}  a4 {[%clk 0:00:10]} 48. g5 {[%clk 0:00:09]}  Rh2+ {[%clk 0:00:09]} 49. Kg4 {[%clk 0:00:09]}  Be6+ {[%clk 0:00:09]} 50. Kg3 {[%clk 0:00:09]}  Rh1 {[%clk 0:00:08]} 51. g6 {[%clk 0:00:08]}  Rg1+ {[%clk 0:00:08]} 52. Kh4 {[%clk 0:00:07]}  Rxg6 {[%clk 0:00:08]} 53. Rxg6 {[%clk 0:00:07]}  fxg6 {[%clk 0:00:09]} 54. Bd6 {[%clk 0:00:08]}  Kf4 {[%clk 0:00:09]} 55. Bc7 {[%clk 0:00:04]}  g5+ {[%clk 0:00:10]} 56. Kh5 {[%clk 0:00:05]}  g4 {[%clk 0:00:11]} 57. Kg6 {[%clk 0:00:04]}  g3 {[%clk 0:00:11]} 58. Kf6 {[%clk 0:00:05]}  g2 {[%clk 0:00:11]} 59. Bb6 {[%clk 0:00:05]}  a3 {[%clk 0:00:10]} 60. Kxe6 {[%clk 0:00:04]}  a2 {[%clk 0:00:10]} 61. Bd4 {[%clk 0:00:02]}  a1=Q {[%clk 0:00:11]} 62. Bxa1 {[%clk 0:00:02]}  g1=Q {[%clk 0:00:11]} 63. Bc3 {[%clk 0:00:02]}  Qb6+ {[%clk 0:00:12]} 64. Kd5 {[%clk 0:00:03]}  Kf5 {[%clk 0:00:12]} 65. Bd4 {[%clk 0:00:02]}  Qe6+ {[%clk 0:00:12]} 66. Kc5 {[%clk 0:00:03]}  Ke4 {[%clk 0:00:13]} 67. Bg1 {[%clk 0:00:02]}  Qd5+ {[%clk 0:00:14]} 68. Kb4 {[%clk 0:00:02]}  Kxe5 {[%clk 0:00:14]} 69. Kc3 {[%clk 0:00:02]}  Ke4 {[%clk 0:00:15]} 70. Bf2 {[%clk 0:00:02]}  Qd2+ {[%clk 0:00:16]} 71. Kxd2 {[%clk 0:00:02]} 1/2-1/2


[Site "https://www.chess.com"]

[Event "Titled Tuesday Blitz May 16 Early 2023"]
[White "Rangel, Daniel"]
[Black "Karthik Rajaa"]
[WhiteFideId "2124475"]
[BlackFideId "25035215"]
[WhiteElo "2256"]
[BlackElo "2215"]
[Result "1/2-1/2"]
[Round "01"]
[TimeControl "180+2"]
[Date "2023.05.16"]
[WhiteClock "0:00:05"]
[BlackClock "0:00:07"]

1. c4 {[%clk 0:02:56]}  Nf6 {[%clk 0:02:58]} 2. g3 {[%clk 0:02:50]}  g6 {[%clk 0:02:58]} 3. Bg2 {[%clk 0:02:51]}  Bg7 {[%clk 0:02:59]} 4. Nc3 {[%clk 0:02:49]}  O-O {[%clk 0:02:59]} 5. e3 {[%clk 0:02:48]}  d6 {[%clk 0:02:58]} 6. Nge2 {[%clk 0:02:46]}  Nbd7 {[%clk 0:02:52]} 7. O-O {[%clk 0:02:43]}  e5 {[%clk 0:02:52]} 8. Nd5 {[%clk 0:02:40]}  c6 {[%clk 0:02:47]} 9. Nxf6+ {[%clk 0:02:35]}  Nxf6 {[%clk 0:02:48]} 10. d4 {[%clk 0:02:23]}  Bf5 {[%clk 0:02:48]} 11. b3 {[%clk 0:02:21]}  h5 {[%clk 0:02:42]} 12. Ba3 {[%clk 0:02:14]}  Re8 {[%clk 0:02:38]} 13. dxe5 {[%clk 0:02:09]}  dxe5 {[%clk 0:02:39]} 14. Qxd8 {[%clk 0:02:08]}  Raxd8 {[%clk 0:02:39]} 15. Rfd1 {[%clk 0:01:55]}  Bc2 {[%clk 0:02:22]} 16. Rxd8 {[%clk 0:01:43]}  Rxd8 {[%clk 0:02:23]} 17. Nc3 {[%clk 0:01:37]}  Bf8 {[%clk 0:02:09]} 18. Bxf8 {[%clk 0:01:20]}  Kxf8 {[%clk 0:02:10]} 19. Kf1 {[%clk 0:01:15]}  Bf5 {[%clk 0:01:52]} 20. Rd1 {[%clk 0:01:10]}  Rxd1+ {[%clk 0:01:46]} 21. Nxd1 {[%clk 0:01:11]}  Ke7 {[%clk 0:01:45]} 22. Nc3 {[%clk 0:01:04]}  a5 {[%clk 0:01:44]} 23. Ke2 {[%clk 0:00:55]}  Nd7 {[%clk 0:01:44]} 24. Be4 {[%clk 0:00:51]}  Be6 {[%clk 0:01:43]} 25. Bc2 {[%clk 0:00:48]}  f5 {[%clk 0:01:39]} 26. f4 {[%clk 0:00:48]}  e4 {[%clk 0:01:32]} 27. Kd2 {[%clk 0:00:44]}  Nc5 {[%clk 0:01:28]} 28. Ne2 {[%clk 0:00:42]}  Na6 {[%clk 0:01:25]} 29. a3 {[%clk 0:00:37]}  a4 {[%clk 0:01:21]} 30. Kc3 {[%clk 0:00:31]}  axb3 {[%clk 0:01:21]} 31. Bxb3 {[%clk 0:00:32]}  Nc5 {[%clk 0:01:19]} 32. Bc2 {[%clk 0:00:31]}  Kd6 {[%clk 0:01:06]} 33. Nd4 {[%clk 0:00:20]}  Bd7 {[%clk 0:00:58]} 34. h4 {[%clk 0:00:20]}  Be6 {[%clk 0:00:55]} 35. Ne2 {[%clk 0:00:19]}  b6 {[%clk 0:00:53]} 36. Nd4 {[%clk 0:00:19]}  Bd7 {[%clk 0:00:50]} 37. Ne2 {[%clk 0:00:18]}  Nb7 {[%clk 0:00:50]} 38. Nd4 {[%clk 0:00:17]}  c5 {[%clk 0:00:40]} 39. Ne2 {[%clk 0:00:14]}  b5 {[%clk 0:00:40]} 40. cxb5 {[%clk 0:00:13]}  Bxb5 {[%clk 0:00:41]} 41. Ng1 {[%clk 0:00:13]}  Bf1 {[%clk 0:00:37]} 42. Bb3 {[%clk 0:00:12]}  Ke7 {[%clk 0:00:21]} 43. Bc4 {[%clk 0:00:11]}  Bxc4 {[%clk 0:00:12]} 44. Kxc4 {[%clk 0:00:12]}  Kd6 {[%clk 0:00:12]} 45. Ne2 {[%clk 0:00:10]}  Kc6 {[%clk 0:00:13]} 46. Kc3 {[%clk 0:00:08]}  Kb5 {[%clk 0:00:12]} 47. Nc1 {[%clk 0:00:08]}  Nd6 {[%clk 0:00:11]} 48. Nb3 {[%clk 0:00:07]}  Nb7 {[%clk 0:00:09]} 49. a4+ {[%clk 0:00:05]}  Kc6 {[%clk 0:00:04]} 50. Kc4 {[%clk 0:00:04]}  Nd6+ {[%clk 0:00:05]} 51. Kc3 {[%clk 0:00:05]}  Nb7 {[%clk 0:00:05]} 52. Kc4 {[%clk 0:00:05]}  Nd6+ {[%clk 0:00:06]} 53. Kc3 {[%clk 0:00:05]}  Nb7 {[%clk 0:00:07]} 1/2-1/2


[Site "https://www.chess.com"]

[Event "Titled Tuesday Blitz May 16 Early 2023"]
[White "Shubenkova, Veronika"]
[Black "Yanchenko, Roman"]
[WhiteFideId "44124040"]
[BlackFideId "4137329"]
[WhiteElo "2060"]
[BlackElo "2491"]
[Result "0-1"]
[Round "01"]
[TimeControl "180+2"]
[Date "2023.05.16"]
[WhiteClock "0:00:04"]
[BlackClock "0:00:16"]

1. e4 {[%clk 0:02:59]}  e6 {[%clk 0:02:59]} 2. d4 {[%clk 0:02:59]}  d5 {[%clk 0:02:57]} 3. exd5 {[%clk 0:02:59]}  exd5 {[%clk 0:02:58]} 4. Nf3 {[%clk 0:03:00]}  Nf6 {[%clk 0:02:58]} 5. c3 {[%clk 0:03:00]}  c5 {[%clk 0:02:58]} 6. Bb5+ {[%clk 0:02:59]}  Nc6 {[%clk 0:02:58]} 7. O-O {[%clk 0:02:59]}  c4 {[%clk 0:02:57]} 8. Bxc6+ {[%clk 0:02:58]}  bxc6 {[%clk 0:02:58]} 9. Bg5 {[%clk 0:02:58]}  Be7 {[%clk 0:02:58]} 10. Ne5 {[%clk 0:02:58]}  Bd7 {[%clk 0:02:58]} 11. Nd2 {[%clk 0:02:58]}  O-O {[%clk 0:02:58]} 12. Qc2 {[%clk 0:02:55]}  h6 {[%clk 0:02:41]} 13. Bxf6 {[%clk 0:02:54]}  Bxf6 {[%clk 0:02:41]} 14. f4 {[%clk 0:02:55]}  Qc7 {[%clk 0:02:38]} 15. Ndf3 {[%clk 0:02:54]}  Bc8 {[%clk 0:02:35]} 16. Rae1 {[%clk 0:02:54]}  Rb8 {[%clk 0:02:34]} 17. Rf2 {[%clk 0:02:54]}  c5 {[%clk 0:02:34]} 18. g4 {[%clk 0:02:49]}  cxd4 {[%clk 0:02:32]} 19. cxd4 {[%clk 0:02:47]}  Bxe5 {[%clk 0:02:30]} 20. Nxe5 {[%clk 0:02:44]}  Qb6 {[%clk 0:02:26]} 21. g5 {[%clk 0:02:31]}  Re8 {[%clk 0:01:37]} 22. gxh6 {[%clk 0:02:30]}  Qxh6 {[%clk 0:01:37]} 23. Qd2 {[%clk 0:02:19]}  Bf5 {[%clk 0:01:35]} 24. Rg2 {[%clk 0:02:16]}  Rb6 {[%clk 0:01:15]} 25. Qf2 {[%clk 0:01:59]}  Rbe6 {[%clk 0:01:11]} 26. Rg5 {[%clk 0:01:43]}  Qh7 {[%clk 0:01:10]} 27. Nf3 {[%clk 0:01:22]}  Rxe1+ {[%clk 0:01:09]} 28. Nxe1 {[%clk 0:01:23]}  f6 {[%clk 0:01:10]} 29. Rg3 {[%clk 0:01:22]}  Be4 {[%clk 0:01:07]} 30. h3 {[%clk 0:01:14]}  Qf5 {[%clk 0:01:07]} 31. Kh2 {[%clk 0:01:12]}  Re7 {[%clk 0:01:04]} 32. Rg4 {[%clk 0:00:58]}  Qh5 {[%clk 0:00:53]} 33. Qe3 {[%clk 0:00:41]}  Kf8 {[%clk 0:00:51]} 34. Qa3 {[%clk 0:00:34]}  Bf5 {[%clk 0:00:47]} 35. Rg2 {[%clk 0:00:26]}  Bxh3 {[%clk 0:00:40]} 36. Rxg7 {[%clk 0:00:17]}  Qe2+ {[%clk 0:00:27]} 37. Rg2 {[%clk 0:00:15]}  Bxg2 {[%clk 0:00:27]} 38. Nxg2 {[%clk 0:00:16]}  Qh5+ {[%clk 0:00:26]} 39. Kg3 {[%clk 0:00:16]}  Qg6+ {[%clk 0:00:23]} 40. Kf2 {[%clk 0:00:14]}  Qc2+ {[%clk 0:00:23]} 41. Kg1 {[%clk 0:00:13]}  Qd1+ {[%clk 0:00:23]} 42. Kh2 {[%clk 0:00:14]}  Qxd4 {[%clk 0:00:23]} 43. Qd6 {[%clk 0:00:13]}  Kf7 {[%clk 0:00:23]} 44. Qb8 {[%clk 0:00:08]}  Re2 {[%clk 0:00:18]} 45. Qb7+ {[%clk 0:00:07]}  Kg6 {[%clk 0:00:19]} 46. f5+ {[%clk 0:00:08]}  Kxf5 {[%clk 0:00:18]} 47. Qc8+ {[%clk 0:00:08]}  Ke4 {[%clk 0:00:19]} 48. Qg4+ {[%clk 0:00:06]}  Kd3 {[%clk 0:00:19]} 49. Qf3+ {[%clk 0:00:06]}  Qe3 {[%clk 0:00:16]} 50. Qxd5+ {[%clk 0:00:05]}  Kc2 {[%clk 0:00:16]} 51. Qxc4+ {[%clk 0:00:05]}  Kb1 {[%clk 0:00:16]} 52. Qg4 {[%clk 0:00:02]}  Qe5+ {[%clk 0:00:15]} 53. Kh3 {[%clk 0:00:02]}  Qe6 {[%clk 0:00:12]} 54. Qxe6 {[%clk 0:00:02]}  Rxe6 {[%clk 0:00:13]} 55. Kg4 {[%clk 0:00:02]}  Kxb2 {[%clk 0:00:12]} 56. Kf5 {[%clk 0:00:03]}  Rb6 {[%clk 0:00:13]} 57. Ne3 {[%clk 0:00:03]}  Kxa2 {[%clk 0:00:13]} 58. Nc4 {[%clk 0:00:03]}  Kb3 {[%clk 0:00:13]} 59. Nxb6 {[%clk 0:00:03]}  axb6 {[%clk 0:00:14]} 60. Kxf6 {[%clk 0:00:04]}  Kc3 {[%clk 0:00:14]} 61. Ke5 {[%clk 0:00:05]}  b5 {[%clk 0:00:15]} 62. Kd5 {[%clk 0:00:04]}  b4 {[%clk 0:00:16]} 0-1


[Site "https://www.chess.com"]